[Event "Late Titled Tuesday Blitz February 8 2022"]
[White "Einarsson, Halldor Gretar"]
[Black "Jacobson, Aaron"]
[WhiteFideId "2300150"]
[BlackFideId "2089912"]
[WhiteElo "2114"]
[BlackElo "2265"]
[Result "0-1"]
[Round "03"]
[TimeControl "180+1"]
[Date "2022.02.09"]
[WhiteClock "0:00:01"]
[BlackClock "0:00:16"]

1. d4 {[%clk 0:03:00]}  d5 {[%clk 0:02:50]} 2. Nf3 {[%clk 0:02:58]}  c5 {[%clk 0:02:50]} 3. g3 {[%clk 0:02:50]}  cxd4 {[%clk 0:02:50]} 4. Bg2 {[%clk 0:02:49]}  f6 {[%clk 0:02:42]} 5. Nxd4 {[%clk 0:02:46]}  e5 {[%clk 0:02:41]} 6. Nb3 {[%clk 0:02:43]}  Be6 {[%clk 0:02:40]} 7. O-O {[%clk 0:02:28]}  Nc6 {[%clk 0:02:05]} 8. Nc3 {[%clk 0:02:25]}  d4 {[%clk 0:01:49]} 9. Ne4 {[%clk 0:02:25]}  Bd5 {[%clk 0:01:23]} 10. c4 {[%clk 0:00:54]}  Bxc4 {[%clk 0:01:06]} 11. Qc2 {[%clk 0:00:45]}  Bd5 {[%clk 0:01:03]} 12. Bd2 {[%clk 0:00:35]}  Rc8 {[%clk 0:01:01]} 13. Rac1 {[%clk 0:00:31]}  f5 {[%clk 0:00:50]} 14. Nec5 {[%clk 0:00:18]}  Bxg2 {[%clk 0:00:49]} 15. Kxg2 {[%clk 0:00:17]}  Qd5+ {[%clk 0:00:49]} 16. f3 {[%clk 0:00:17]}  Nd8 {[%clk 0:00:34]} 17. Qxf5 {[%clk 0:00:16]}  Rxc5 {[%clk 0:00:34]} 18. Nxc5 {[%clk 0:00:15]}  Bxc5 {[%clk 0:00:35]} 19. e4 {[%clk 0:00:09]}  dxe3 {[%clk 0:00:30]} 20. Bc3 {[%clk 0:00:06]}  Nf6 {[%clk 0:00:29]} 21. Rfd1 {[%clk 0:00:05]}  Qe6 {[%clk 0:00:26]} 22. Qxe5 {[%clk 0:00:04]}  Qxe5 {[%clk 0:00:23]} 23. Bxe5 {[%clk 0:00:04]}  Bb6 {[%clk 0:00:21]} 24. Rc8 {[%clk 0:00:03]}  O-O {[%clk 0:00:21]} 25. Bd6 {[%clk 0:00:02]}  Re8 {[%clk 0:00:20]} 26. Re1 {[%clk 0:00:02]}  Ba5 {[%clk 0:00:16]} 27. Re2 {[%clk 0:00:01]}  Bd2 {[%clk 0:00:16]} 0-1


[Site "https://www.chess.com"]

[Event "Late Titled Tuesday Blitz February 8 2022"]
[White "Garriga Cazorla, Pere"]
[Black "Erigaisi Arjun"]
[WhiteFideId "32011601"]
[BlackFideId "35009192"]
[WhiteElo "2458"]
[BlackElo "2745"]
[Result "0-1"]
[Round "03"]
[TimeControl "180+1"]
[Date "2022.02.08"]
[WhiteClock "0:00:30"]
[BlackClock "0:01:38"]

1. d4 {[%clk 0:03:00]}  e6 {[%clk 0:03:00]} 2. c4 {[%clk 0:02:56]}  c5 {[%clk 0:03:00]} 3. d5 {[%clk 0:02:56]}  exd5 {[%clk 0:03:01]} 4. cxd5 {[%clk 0:02:57]}  d6 {[%clk 0:03:02]} 5. Nc3 {[%clk 0:02:57]}  g6 {[%clk 0:03:02]} 6. e4 {[%clk 0:02:54]}  Bg7 {[%clk 0:03:02]} 7. Bd3 {[%clk 0:02:43]}  Ne7 {[%clk 0:03:02]} 8. h4 {[%clk 0:02:43]}  O-O {[%clk 0:02:59]} 9. h5 {[%clk 0:02:43]}  f5 {[%clk 0:02:59]} 10. hxg6 {[%clk 0:02:37]}  hxg6 {[%clk 0:03:00]} 11. Bg5 {[%clk 0:02:31]}  Nd7 {[%clk 0:02:56]} 12. Nge2 {[%clk 0:02:20]}  Ne5 {[%clk 0:02:52]} 13. Nf4 {[%clk 0:02:12]}  Bf6 {[%clk 0:02:52]} 14. Bxf6 {[%clk 0:02:02]}  Rxf6 {[%clk 0:02:53]} 15. Qd2 {[%clk 0:02:02]}  Qf8 {[%clk 0:02:49]} 16. Nh3 {[%clk 0:01:45]}  f4 {[%clk 0:02:35]} 17. Ng5 {[%clk 0:01:39]}  Bg4 {[%clk 0:02:35]} 18. Be2 {[%clk 0:01:31]}  f3 {[%clk 0:02:29]} 19. gxf3 {[%clk 0:01:29]}  Bxf3 {[%clk 0:02:29]} 20. Nxf3 {[%clk 0:01:12]}  Rxf3 {[%clk 0:02:26]} 21. O-O-O {[%clk 0:01:01]}  Rxf2 {[%clk 0:02:24]} 22. Rh4 {[%clk 0:01:01]}  Nf3 {[%clk 0:02:19]} 23. Rdh1 {[%clk 0:00:46]}  Nxd2 {[%clk 0:01:57]} 24. Rh8+ {[%clk 0:00:44]}  Kg7 {[%clk 0:01:57]} 25. R1h7+ {[%clk 0:00:44]}  Kf6 {[%clk 0:01:58]} 26. e5+ {[%clk 0:00:43]}  dxe5 {[%clk 0:01:44]} 27. Rxf8+ {[%clk 0:00:36]}  Rxf8 {[%clk 0:01:45]} 28. Kxd2 {[%clk 0:00:37]}  Rf4 {[%clk 0:01:44]} 29. Ke3 {[%clk 0:00:36]}  Nf5+ {[%clk 0:01:41]} 30. Kd2 {[%clk 0:00:34]}  Rf7 {[%clk 0:01:38]} 31. Rh8 {[%clk 0:00:30]}  Rd4+ {[%clk 0:01:38]} 32. Kc2 {[%clk 0:00:30]}  Ne3+ {[%clk 0:01:38]} 33. Kb3 {[%clk 0:00:30]}  Rb4+ {[%clk 0:01:38]} 0-1


[Site "https://www.chess.com"]

[Event "Late Titled Tuesday Blitz February 8 2022"]
[White "Gatterer, Florian"]
[Black "Kozin, Yuri"]
[WhiteFideId "811688"]
[BlackFideId "4129920"]
[WhiteElo "2218"]
[BlackElo "2502"]
[Result "1-0"]
[Round "03"]
[TimeControl "180+1"]
[Date "2022.02.09"]
[WhiteClock "0:01:19"]
[BlackClock "0:01:46"]

1. d4 {[%clk 0:03:00]}  d5 {[%clk 0:02:59]} 2. Bf4 {[%clk 0:03:00]}  Nf6 {[%clk 0:02:59]} 3. e3 {[%clk 0:03:01]}  e6 {[%clk 0:03:00]} 4. Nd2 {[%clk 0:03:00]}  Bd6 {[%clk 0:03:00]} 5. Ngf3 {[%clk 0:03:00]}  Bxf4 {[%clk 0:03:00]} 6. exf4 {[%clk 0:02:59]}  O-O {[%clk 0:03:01]} 7. c3 {[%clk 0:02:56]}  b6 {[%clk 0:03:01]} 8. h4 {[%clk 0:02:54]}  c5 {[%clk 0:02:59]} 9. h5 {[%clk 0:02:52]}  Qc7 {[%clk 0:02:47]} 10. h6 {[%clk 0:02:48]}  g6 {[%clk 0:02:47]} 11. g3 {[%clk 0:02:48]}  a5 {[%clk 0:02:44]} 12. a4 {[%clk 0:02:43]}  Nc6 {[%clk 0:02:44]} 13. Nb3 {[%clk 0:02:31]}  Ne4 {[%clk 0:02:38]} 14. Bd3 {[%clk 0:02:27]}  Ba6 {[%clk 0:02:38]} 15. Bxa6 {[%clk 0:02:21]}  Rxa6 {[%clk 0:02:39]} 16. O-O {[%clk 0:02:16]}  cxd4 {[%clk 0:02:33]} 17. Nbxd4 {[%clk 0:02:10]}  Nxd4 {[%clk 0:02:31]} 18. Nxd4 {[%clk 0:02:10]}  Qe7 {[%clk 0:02:22]} 19. Qe2 {[%clk 0:02:02]}  Raa8 {[%clk 0:02:20]} 20. Kg2 {[%clk 0:02:01]}  e5 {[%clk 0:02:13]} 21. Nc6 {[%clk 0:01:52]}  Qf6 {[%clk 0:02:03]} 22. Nxe5 {[%clk 0:01:47]}  Rfe8 {[%clk 0:02:03]} 23. Qd3 {[%clk 0:01:29]}  Rad8 {[%clk 0:02:02]} 24. Rad1 {[%clk 0:01:27]}  Nc5 {[%clk 0:02:01]} 25. Qd4 {[%clk 0:01:19]}  Qxe5 {[%clk 0:01:46]} 1-0


[Site "https://www.chess.com"]

[Event "Late Titled Tuesday Blitz February 8 2022"]
[White "Goryachkina, Aleksandra"]
[Black "Przybylski, Wojciech"]
[WhiteFideId "4147103"]
[BlackFideId "1117599"]
[WhiteElo "2649"]
[BlackElo "2455"]
[Result "1-0"]
[Round "03"]
[TimeControl "180+1"]
[Date "2022.02.09"]
[WhiteClock "0:00:04"]
[BlackClock "0:00:07"]

1. e4 {[%clk 0:03:00]}  e5 {[%clk 0:02:58]} 2. Nf3 {[%clk 0:03:00]}  Nc6 {[%clk 0:02:58]} 3. d4 {[%clk 0:03:00]}  exd4 {[%clk 0:02:58]} 4. Nxd4 {[%clk 0:03:00]}  Nf6 {[%clk 0:02:58]} 5. Nxc6 {[%clk 0:03:00]}  bxc6 {[%clk 0:02:57]} 6. e5 {[%clk 0:03:00]}  Qe7 {[%clk 0:02:57]} 7. Qe2 {[%clk 0:03:01]}  Nd5 {[%clk 0:02:57]} 8. g3 {[%clk 0:03:01]}  h5 {[%clk 0:02:56]} 9. h4 {[%clk 0:02:54]}  Bb7 {[%clk 0:02:50]} 10. Bg2 {[%clk 0:02:45]}  d6 {[%clk 0:02:46]} 11. c4 {[%clk 0:02:31]}  Nb6 {[%clk 0:02:45]} 12. O-O {[%clk 0:02:11]}  Qxe5 {[%clk 0:02:24]} 13. Qc2 {[%clk 0:02:10]}  O-O-O {[%clk 0:02:22]} 14. Bf4 {[%clk 0:02:05]}  Qd4 {[%clk 0:02:16]} 15. Nd2 {[%clk 0:01:53]}  Kb8 {[%clk 0:02:03]} 16. b4 {[%clk 0:01:46]}  d5 {[%clk 0:01:43]} 17. Be3 {[%clk 0:01:16]}  Qg4 {[%clk 0:01:31]} 18. c5 {[%clk 0:01:06]}  Nc4 {[%clk 0:01:07]} 19. Nxc4 {[%clk 0:01:05]}  Qxc4 {[%clk 0:01:05]} 20. Qxc4 {[%clk 0:00:49]}  dxc4 {[%clk 0:01:06]} 21. Rfc1 {[%clk 0:00:48]}  Be7 {[%clk 0:00:57]} 22. Rxc4 {[%clk 0:00:48]}  Bf6 {[%clk 0:00:57]} 23. Re1 {[%clk 0:00:47]}  Rhe8 {[%clk 0:00:54]} 24. a4 {[%clk 0:00:43]}  Ba6 {[%clk 0:00:36]} 25. Rcc1 {[%clk 0:00:41]}  Re6 {[%clk 0:00:34]} 26. Red1 {[%clk 0:00:33]}  Bd3 {[%clk 0:00:24]} 27. Rd2 {[%clk 0:00:29]}  Be4 {[%clk 0:00:23]} 28. Bf1 {[%clk 0:00:21]}  Bd5 {[%clk 0:00:18]} 29. Rcd1 {[%clk 0:00:18]}  Rde8 {[%clk 0:00:17]} 30. b5 {[%clk 0:00:18]}  Bc3 {[%clk 0:00:16]} 31. Rd3 {[%clk 0:00:17]}  Be5 {[%clk 0:00:15]} 32. bxc6 {[%clk 0:00:16]}  Bxc6 {[%clk 0:00:13]} 33. a5 {[%clk 0:00:13]}  Bf6 {[%clk 0:00:11]} 34. a6 {[%clk 0:00:10]}  Ka8 {[%clk 0:00:10]} 35. Rb3 {[%clk 0:00:06]}  Rb8 {[%clk 0:00:09]} 36. Rdb1 {[%clk 0:00:05]}  Ree8 {[%clk 0:00:08]} 37. Bc4 {[%clk 0:00:04]}  Rxb3 {[%clk 0:00:07]} 38. Rxb3 {[%clk 0:00:05]}  Rb8 {[%clk 0:00:06]} 39. Rxb8+ {[%clk 0:00:05]}  Kxb8 {[%clk 0:00:06]} 40. Bxf7 {[%clk 0:00:06]}  Bb5 {[%clk 0:00:07]} 41. Bxh5 {[%clk 0:00:06]}  Bxa6 {[%clk 0:00:07]} 42. Bf7 {[%clk 0:00:06]}  Bd3 {[%clk 0:00:07]} 43. h5 {[%clk 0:00:06]}  a5 {[%clk 0:00:06]} 44. g4 {[%clk 0:00:06]}  a4 {[%clk 0:00:06]} 45. g5 {[%clk 0:00:06]}  Bb2 {[%clk 0:00:06]} 46. g6 {[%clk 0:00:02]}  Bb1 {[%clk 0:00:05]} 47. h6 {[%clk 0:00:02]}  gxh6 {[%clk 0:00:05]} 48. Bxh6 {[%clk 0:00:03]}  a3 {[%clk 0:00:05]} 49. g7 {[%clk 0:00:03]}  Bxg7 {[%clk 0:00:04]} 50. Bxg7 {[%clk 0:00:03]}  a2 {[%clk 0:00:05]} 51. Bd4 {[%clk 0:00:02]}  Kc8 {[%clk 0:00:05]} 52. f4 {[%clk 0:00:03]}  Kd7 {[%clk 0:00:05]} 53. Bd5 {[%clk 0:00:03]}  c6 {[%clk 0:00:05]} 54. Bc4 {[%clk 0:00:03]}  Ke7 {[%clk 0:00:05]} 55. Kf2 {[%clk 0:00:03]}  Kd7 {[%clk 0:00:05]} 56. Kg3 {[%clk 0:00:03]}  Ke7 {[%clk 0:00:05]} 57. Kg4 {[%clk 0:00:04]}  Kd7 {[%clk 0:00:04]} 58. Kg5 {[%clk 0:00:04]}  Ke7 {[%clk 0:00:04]} 59. f5 {[%clk 0:00:05]}  Kf8 {[%clk 0:00:04]} 60. f6 {[%clk 0:00:05]}  Bd3 {[%clk 0:00:04]} 61. Bxd3 {[%clk 0:00:03]}  Ke8 {[%clk 0:00:05]} 62. Ba1 {[%clk 0:00:03]}  Kf8 {[%clk 0:00:05]} 63. Kg6 {[%clk 0:00:03]}  Kg8 {[%clk 0:00:05]} 64. f7+ {[%clk 0:00:03]}  Kf8 {[%clk 0:00:06]} 65. Bg7+ {[%clk 0:00:03]}  Ke7 {[%clk 0:00:06]} 66. f8=Q+ {[%clk 0:00:04]}  Ke6 {[%clk 0:00:07]} 67. Qd6# {[%clk 0:00:04]} 1-0


[Site "https://www.chess.com"]

[Event "Late Titled Tuesday Blitz February 8 2022"]
[White "Gracia Alvarez, Gerardo Antonio"]
[Black "Lopez Del Alamo, Antonio"]
[WhiteFideId "5109124"]
[BlackFideId "2227339"]
[WhiteElo "2139"]
[BlackElo "2082"]
[Result "1-0"]
[Round "03"]
[TimeControl "180+1"]
[Date "2022.02.09"]
[WhiteClock "0:01:35"]
[BlackClock "0:00:57"]

1. c4 {[%clk 0:03:00]}  Nf6 {[%clk 0:02:59]} 2. Nf3 {[%clk 0:02:59]}  g6 {[%clk 0:02:56]} 3. Nc3 {[%clk 0:02:54]}  Bg7 {[%clk 0:02:56]} 4. e4 {[%clk 0:02:53]}  d6 {[%clk 0:02:56]} 5. d4 {[%clk 0:02:50]}  O-O {[%clk 0:02:53]} 6. Be2 {[%clk 0:02:49]}  e5 {[%clk 0:02:50]} 7. O-O {[%clk 0:02:47]}  Nc6 {[%clk 0:02:50]} 8. d5 {[%clk 0:02:46]}  Ne7 {[%clk 0:02:50]} 9. Ne1 {[%clk 0:02:33]}  Nd7 {[%clk 0:02:49]} 10. Be3 {[%clk 0:02:29]}  f5 {[%clk 0:02:49]} 11. f3 {[%clk 0:02:30]}  f4 {[%clk 0:02:49]} 12. Bf2 {[%clk 0:02:30]}  g5 {[%clk 0:02:48]} 13. Nd3 {[%clk 0:02:29]}  Ng6 {[%clk 0:02:48]} 14. Rc1 {[%clk 0:02:23]}  Rf7 {[%clk 0:02:41]} 15. c5 {[%clk 0:02:22]}  Bf8 {[%clk 0:02:41]} 16. cxd6 {[%clk 0:02:16]}  cxd6 {[%clk 0:02:42]} 17. Nb5 {[%clk 0:02:14]}  Nb6 {[%clk 0:02:28]} 18. Qb3 {[%clk 0:02:03]}  a6 {[%clk 0:01:53]} 19. Nc7 {[%clk 0:01:58]}  g4 {[%clk 0:01:02]} 20. fxg4 {[%clk 0:01:46]}  Qg5 {[%clk 0:00:58]} 21. Nxa8 {[%clk 0:01:37]}  Nxa8 {[%clk 0:00:57]} 22. Rxc8 {[%clk 0:01:35]} 1-0


[Site "https://www.chess.com"]

[Event "Late Titled Tuesday Blitz February 8 2022"]
[White "Gurevich, Dmitry"]
[Black "Kubatko, Ivan"]
[WhiteFideId "2000407"]
[BlackFideId "24111473"]
[WhiteElo "2506"]
[BlackElo "2285"]
[Result "0-1"]
[Round "03"]
[TimeControl "180+1"]
[Date "2022.02.09"]
[WhiteClock "0:00:01"]
[BlackClock "0:00:06"]

1. d4 {[%clk 0:03:00]}  d5 {[%clk 0:02:59]} 2. c4 {[%clk 0:03:00]}  e6 {[%clk 0:02:58]} 3. Nc3 {[%clk 0:02:59]}  c5 {[%clk 0:02:59]} 4. cxd5 {[%clk 0:02:59]}  cxd4 {[%clk 0:02:59]} 5. Qxd4 {[%clk 0:02:58]}  Nc6 {[%clk 0:02:59]} 6. Qd1 {[%clk 0:02:54]}  exd5 {[%clk 0:03:00]} 7. Qxd5 {[%clk 0:02:53]}  Bd7 {[%clk 0:03:00]} 8. Nf3 {[%clk 0:02:49]}  Nf6 {[%clk 0:03:01]} 9. Qd1 {[%clk 0:02:49]}  Bc5 {[%clk 0:03:01]} 10. e3 {[%clk 0:02:48]}  Qe7 {[%clk 0:03:02]} 11. Be2 {[%clk 0:02:45]}  O-O-O {[%clk 0:03:03]} 12. O-O {[%clk 0:02:43]}  g5 {[%clk 0:03:02]} 13. Na4 {[%clk 0:02:28]}  Bd6 {[%clk 0:03:00]} 14. Qc2 {[%clk 0:02:19]}  Kb8 {[%clk 0:02:59]} 15. Rd1 {[%clk 0:02:04]}  g4 {[%clk 0:02:03]} 16. Nd2 {[%clk 0:02:04]}  h5 {[%clk 0:01:50]} 17. Nf1 {[%clk 0:01:57]}  h4 {[%clk 0:01:48]} 18. e4 {[%clk 0:01:54]}  Nxe4 {[%clk 0:01:39]} 19. Be3 {[%clk 0:01:52]}  g3 {[%clk 0:01:37]} 20. Bf3 {[%clk 0:01:42]}  gxf2+ {[%clk 0:01:32]} 21. Bxf2 {[%clk 0:01:41]}  Nxf2 {[%clk 0:01:31]} 22. Qxf2 {[%clk 0:01:40]}  Ne5 {[%clk 0:01:20]} 23. Rxd6 {[%clk 0:01:04]}  Qxd6 {[%clk 0:01:10]} 24. Rd1 {[%clk 0:01:02]}  Nxf3+ {[%clk 0:00:52]} 25. Qxf3 {[%clk 0:01:00]}  Qc6 {[%clk 0:00:53]} 26. Qf4+ {[%clk 0:00:54]}  Ka8 {[%clk 0:00:52]} 27. Nc3 {[%clk 0:00:52]}  Be6 {[%clk 0:00:49]} 28. Rc1 {[%clk 0:00:45]}  Qb6+ {[%clk 0:00:48]} 29. Qf2 {[%clk 0:00:40]}  Rd4 {[%clk 0:00:43]} 30. b3 {[%clk 0:00:20]}  Rhd8 {[%clk 0:00:43]} 31. Ne2 {[%clk 0:00:13]}  Rd1 {[%clk 0:00:33]} 32. Qxb6 {[%clk 0:00:12]}  axb6 {[%clk 0:00:32]} 33. Rc2 {[%clk 0:00:12]}  Ra1 {[%clk 0:00:27]} 34. Kf2 {[%clk 0:00:12]}  Rdd1 {[%clk 0:00:22]} 35. Nd2 {[%clk 0:00:10]}  Rh1 {[%clk 0:00:22]} 36. Nf3 {[%clk 0:00:08]}  h3 {[%clk 0:00:19]} 37. gxh3 {[%clk 0:00:07]}  Bxh3 {[%clk 0:00:20]} 38. Nf4 {[%clk 0:00:07]}  Rhf1+ {[%clk 0:00:15]} 39. Kg3 {[%clk 0:00:06]}  Bf5 {[%clk 0:00:15]} 40. Rd2 {[%clk 0:00:05]}  Ka7 {[%clk 0:00:15]} 41. Nd5 {[%clk 0:00:04]}  Be4 {[%clk 0:00:14]} 42. Ne5 {[%clk 0:00:03]}  Rg1+ {[%clk 0:00:12]} 43. Kf4 {[%clk 0:00:02]}  Bxd5 {[%clk 0:00:11]} 44. Rxd5 {[%clk 0:00:02]}  Rxa2 {[%clk 0:00:09]} 45. Nc4 {[%clk 0:00:02]}  b5 {[%clk 0:00:06]} 46. Nd6 {[%clk 0:00:02]}  Rf2+ {[%clk 0:00:05]} 47. Ke3 {[%clk 0:00:01]}  Rff1 {[%clk 0:00:05]} 48. Nxb5+ {[%clk 0:00:01]}  Kb6 {[%clk 0:00:06]} 49. Nd6 {[%clk 0:00:01]}  Kc6 {[%clk 0:00:06]} 0-1


[Site "https://www.chess.com"]

[Event "Late Titled Tuesday Blitz February 8 2022"]
[White "Hamley, Ryan"]
[Black "Shahade, Gregory"]
[WhiteFideId "30959497"]
[BlackFideId "2009064"]
[WhiteElo "2474"]
[BlackElo "2672"]
[Result "0-1"]
[Round "03"]
[TimeControl "180+1"]
[Date "2022.02.09"]
[WhiteClock "0:00:02"]
[BlackClock "0:00:06"]

1. d4 {[%clk 0:02:59]}  Nf6 {[%clk 0:02:59]} 2. c4 {[%clk 0:02:59]}  g6 {[%clk 0:02:59]} 3. Nc3 {[%clk 0:03:00]}  d5 {[%clk 0:02:59]} 4. Nf3 {[%clk 0:03:00]}  Bg7 {[%clk 0:02:59]} 5. Qb3 {[%clk 0:03:00]}  dxc4 {[%clk 0:02:58]} 6. Qxc4 {[%clk 0:03:01]}  O-O {[%clk 0:02:58]} 7. e4 {[%clk 0:03:02]}  a6 {[%clk 0:02:55]} 8. Be2 {[%clk 0:03:01]}  b5 {[%clk 0:02:56]} 9. Qb3 {[%clk 0:03:00]}  c5 {[%clk 0:02:53]} 10. dxc5 {[%clk 0:03:00]}  Be6 {[%clk 0:02:48]} 11. Qc2 {[%clk 0:02:58]}  Nbd7 {[%clk 0:02:48]} 12. Be3 {[%clk 0:02:57]}  Rc8 {[%clk 0:02:45]} 13. Rd1 {[%clk 0:02:53]}  b4 {[%clk 0:02:45]} 14. Na4 {[%clk 0:02:48]}  Qa5 {[%clk 0:02:31]} 15. b3 {[%clk 0:02:45]}  Ng4 {[%clk 0:02:25]} 16. Bd4 {[%clk 0:02:14]}  Bxd4 {[%clk 0:02:24]} 17. Nxd4 {[%clk 0:02:15]}  Nxc5 {[%clk 0:02:21]} 18. Nxc5 {[%clk 0:02:15]}  Rxc5 {[%clk 0:02:21]} 19. Qd2 {[%clk 0:02:15]}  Bc8 {[%clk 0:01:58]} 20. O-O {[%clk 0:02:10]}  Nf6 {[%clk 0:01:55]} 21. Bf3 {[%clk 0:02:06]}  Bb7 {[%clk 0:01:41]} 22. Rfe1 {[%clk 0:01:59]}  Rd8 {[%clk 0:01:40]} 23. Qe2 {[%clk 0:00:51]}  e5 {[%clk 0:01:26]} 24. Nc2 {[%clk 0:00:50]}  Rxd1 {[%clk 0:01:07]} 25. Qxd1 {[%clk 0:00:50]}  Qb6 {[%clk 0:00:44]} 26. Qd2 {[%clk 0:00:45]}  a5 {[%clk 0:00:42]} 27. h3 {[%clk 0:00:42]}  Qc7 {[%clk 0:00:41]} 28. Ne3 {[%clk 0:00:37]}  Bxe4 {[%clk 0:00:39]} 29. Bxe4 {[%clk 0:00:33]}  Nxe4 {[%clk 0:00:39]} 30. Qd3 {[%clk 0:00:34]}  Nf6 {[%clk 0:00:35]} 31. Nc4 {[%clk 0:00:34]}  e4 {[%clk 0:00:35]} 32. Qd4 {[%clk 0:00:34]}  Qe7 {[%clk 0:00:31]} 33. f3 {[%clk 0:00:23]}  Rd5 {[%clk 0:00:30]} 34. Qb6 {[%clk 0:00:20]}  Qc5+ {[%clk 0:00:25]} 35. Qxc5 {[%clk 0:00:20]}  Rxc5 {[%clk 0:00:26]} 36. fxe4 {[%clk 0:00:21]}  a4 {[%clk 0:00:27]} 37. Kf2 {[%clk 0:00:21]}  axb3 {[%clk 0:00:25]} 38. axb3 {[%clk 0:00:22]}  h5 {[%clk 0:00:24]} 39. Ke3 {[%clk 0:00:22]}  Rg5 {[%clk 0:00:24]} 40. Re2 {[%clk 0:00:21]}  Rg3+ {[%clk 0:00:24]} 41. Kd4 {[%clk 0:00:21]}  Rxb3 {[%clk 0:00:24]} 42. e5 {[%clk 0:00:15]}  Nd7 {[%clk 0:00:23]} 43. Nd6 {[%clk 0:00:15]}  Nf8 {[%clk 0:00:20]} 44. Rf2 {[%clk 0:00:15]}  Ne6+ {[%clk 0:00:20]} 45. Kc4 {[%clk 0:00:15]}  Re3 {[%clk 0:00:14]} 46. Kxb4 {[%clk 0:00:14]}  Rxe5 {[%clk 0:00:12]} 47. Nxf7 {[%clk 0:00:14]}  Re4+ {[%clk 0:00:13]} 48. Kc3 {[%clk 0:00:14]}  Rf4 {[%clk 0:00:08]} 49. Rxf4 {[%clk 0:00:11]}  Nxf4 {[%clk 0:00:09]} 50. Ne5 {[%clk 0:00:12]}  Kg7 {[%clk 0:00:10]} 51. g3 {[%clk 0:00:07]}  Nxh3 {[%clk 0:00:10]} 52. Kd3 {[%clk 0:00:07]}  Ng5 {[%clk 0:00:10]} 53. Ke3 {[%clk 0:00:07]}  Nf7 {[%clk 0:00:10]} 54. Nf3 {[%clk 0:00:07]}  Kf6 {[%clk 0:00:11]} 55. Kf4 {[%clk 0:00:08]}  g5+ {[%clk 0:00:10]} 56. Ke4 {[%clk 0:00:09]}  Nd6+ {[%clk 0:00:11]} 57. Kd5 {[%clk 0:00:09]}  Nf5 {[%clk 0:00:11]} 58. Nd2 {[%clk 0:00:09]}  Nxg3 {[%clk 0:00:10]} 59. Kd4 {[%clk 0:00:09]}  Kf5 {[%clk 0:00:10]} 60. Ke3 {[%clk 0:00:10]}  Kg4 {[%clk 0:00:09]} 61. Kf2 {[%clk 0:00:10]}  Kf4 {[%clk 0:00:09]} 62. Kg2 {[%clk 0:00:11]}  h4 {[%clk 0:00:09]} 63. Nc4 {[%clk 0:00:11]}  g4 {[%clk 0:00:09]} 64. Nb6 {[%clk 0:00:11]}  h3+ {[%clk 0:00:09]} 65. Kh2 {[%clk 0:00:11]}  Nf1+ {[%clk 0:00:10]} 66. Kg1 {[%clk 0:00:11]}  Ne3 {[%clk 0:00:08]} 67. Nd7 {[%clk 0:00:10]}  g3 {[%clk 0:00:08]} 68. Nf6 {[%clk 0:00:08]}  Kf3 {[%clk 0:00:08]} 69. Kh1 {[%clk 0:00:04]}  Ng4 {[%clk 0:00:06]} 70. Nxg4 {[%clk 0:00:02]} 0-1


[Site "https://www.chess.com"]

[Event "Late Titled Tuesday Blitz February 8 2022"]
[White "Hasangatin, Ramil"]
[Black "Tan, Jun Ying"]
[WhiteFideId "4122160"]
[BlackFideId "5710413"]
[WhiteElo "2671"]
[BlackElo "2478"]
[Result "1-0"]
[Round "03"]
[TimeControl "180+1"]
[Date "2022.02.09"]
[WhiteClock "0:02:29"]
[BlackClock "0:00:46"]

1. e4 {[%clk 0:03:00]}  c5 {[%clk 0:02:58]} 2. Nf3 {[%clk 0:03:00]}  Nc6 {[%clk 0:02:58]} 3. Bb5 {[%clk 0:03:00]}  d6 {[%clk 0:02:57]} 4. d4 {[%clk 0:02:59]}  cxd4 {[%clk 0:02:56]} 5. Qxd4 {[%clk 0:03:00]}  Bd7 {[%clk 0:02:55]} 6. Bxc6 {[%clk 0:03:01]}  Bxc6 {[%clk 0:02:56]} 7. Nc3 {[%clk 0:03:01]}  Nf6 {[%clk 0:02:56]} 8. Bg5 {[%clk 0:03:02]}  e6 {[%clk 0:02:56]} 9. O-O-O {[%clk 0:03:02]}  Be7 {[%clk 0:02:56]} 10. Rhe1 {[%clk 0:03:03]}  O-O {[%clk 0:02:52]} 11. Qd2 {[%clk 0:03:03]}  Qa5 {[%clk 0:02:19]} 12. Kb1 {[%clk 0:02:59]}  Kh8 {[%clk 0:02:14]} 13. Nd4 {[%clk 0:02:59]}  Rac8 {[%clk 0:02:06]} 14. f3 {[%clk 0:02:59]}  b5 {[%clk 0:02:01]} 15. h4 {[%clk 0:02:59]}  b4 {[%clk 0:01:58]} 16. Nce2 {[%clk 0:02:59]}  Ba4 {[%clk 0:01:53]} 17. b3 {[%clk 0:02:56]}  Bb5 {[%clk 0:01:39]} 18. Ng3 {[%clk 0:02:42]}  Rc5 {[%clk 0:01:20]} 19. Nh5 {[%clk 0:02:41]}  Rxg5 {[%clk 0:00:52]} 20. Qxg5 {[%clk 0:02:32]}  Rg8 {[%clk 0:00:50]} 21. Nxf6 {[%clk 0:02:29]}  Bxf6 {[%clk 0:00:46]} 22. Qxb5 {[%clk 0:02:29]} 1-0


[Site "https://www.chess.com"]

[Event "Late Titled Tuesday Blitz February 8 2022"]
[White "Haussernot, Cecile"]
[Black "Villegas, Pierre"]
[WhiteFideId "601632"]
[BlackFideId "654183"]
[WhiteElo "2288"]
[BlackElo "2410"]
[Result "0-1"]
[Round "03"]
[TimeControl "180+1"]
[Date "2022.02.09"]
[WhiteClock "0:01:57"]
[BlackClock "0:01:03"]

1. e4 {[%clk 0:02:58]}  c6 {[%clk 0:02:59]} 2. d4 {[%clk 0:02:58]}  d5 {[%clk 0:03:00]} 3. e5 {[%clk 0:02:59]}  a6 {[%clk 0:03:00]} 4. Nd2 {[%clk 0:02:50]}  c5 {[%clk 0:02:51]} 5. dxc5 {[%clk 0:02:47]}  Nd7 {[%clk 0:02:49]} 6. e6 {[%clk 0:02:41]}  fxe6 {[%clk 0:02:47]} 7. Nb3 {[%clk 0:02:41]}  Nxc5 {[%clk 0:02:31]} 8. Nxc5 {[%clk 0:02:38]}  Qa5+ {[%clk 0:02:31]} 9. Bd2 {[%clk 0:02:38]}  Qxc5 {[%clk 0:02:31]} 10. Bc3 {[%clk 0:02:38]}  e5 {[%clk 0:02:17]} 11. Qh5+ {[%clk 0:02:32]}  g6 {[%clk 0:02:14]} 12. Qxe5 {[%clk 0:02:32]}  Nf6 {[%clk 0:02:13]} 13. O-O-O {[%clk 0:02:32]}  Bf5 {[%clk 0:01:57]} 14. Re1 {[%clk 0:02:12]}  Bh6+ {[%clk 0:01:37]} 15. Kb1 {[%clk 0:02:09]}  O-O {[%clk 0:01:37]} 16. Qxe7 {[%clk 0:02:03]}  Qxf2 {[%clk 0:01:30]} 17. Bd3 {[%clk 0:01:58]}  Rae8 {[%clk 0:01:21]} 18. Qb4 {[%clk 0:01:58]}  Bxd3 {[%clk 0:01:04]} 19. cxd3 {[%clk 0:01:56]}  Rxe1+ {[%clk 0:01:03]} 20. Bxe1 {[%clk 0:01:57]}  Qxg2 {[%clk 0:01:03]} 0-1


[Site "https://www.chess.com"]